[Event "17th Spilimbergo Open 2019"]
[Site "Spilimbergo"]
[Date "2019.08.11"]
[Round "4.8"]
[White "Miron, Lucian-Costin"]
[Black "Barp, Alberto"]
[Result "1/2-1/2"]
[WhiteElo "2494"]
[BlackElo "2411"]
[PlyCount "101"]
[EventDate "2019.08.09"]
[EventType "swiss"]
[EventCountry "ITA"]
[TimeControl "5400+30"]
[BlackClock "0:07:14"]

1. d4 {[%emt 0:00:30]} d5 {[%emt 0:00:30]} 2. c4 {[%emt 0:00:00]} e6 {[%emt 0:00:00]} 3. Nf3 {[%emt 0:00:00]} Nf6 {[%emt 0:00:00]} 4. g3 {[%emt 0:01:30]} dxc4 {[%emt 0:02:30]} 5. Bg2 {[%emt 0:01:30]} Bb4+ {[%emt 0:01:30]} 6. Bd2 {[%emt 0:00:30]} a5 {[%emt 0:00:00]} 7. Qc2 {[%emt 0:01:30]} Bxd2+ {[%emt 0:00:00]} 8. Qxd2 {[%emt 0:01:30]} c6 {[%emt 0:00:30]} 9. a4 {[%emt 0:08:30]} Ne4 {[%emt 0:01:30]} 10. Qf4 {[%emt 0:00:30]} Qb6 {[%emt 0:01:30]} 11. Nbd2 {[%emt 0:13:30]} Nxd2 {[%emt 0:02:30]} 12. Nxd2 {[%emt 0:00:00]} Qb4 {[%emt 0:12:30]} 13. O-O {[%emt 0:12:00]} Nd7 {[%emt 0:02:30]} 14. Rfc1 {[%emt 0:12:30]} Nb6 {[%emt 0:01:30]} 15. Qe3 {[%emt 0:06:30]} O-O {[%emt 0:07:30]} 16. Qc3 {[%emt 0:00:30]} Qxc3 {[%emt 0:12:30]} 17. Rxc3 {[%emt 0:02:30]} Rd8 {[%emt 0:05:30]} 18. Nxc4 {[%emt 0:05:30]} Nxc4 {[%emt 0:01:30]} 19. Rxc4 {[%emt 0:00:30]} e5 {[%emt 0:00:30]} 20. dxe5 {[%emt 0:09:30]} Rd2 {[%emt 0:01:30]} 21. b4 {[%emt 0:10:25]} Be6 {[%emt 0:02:30]} 22. Re4 {[%emt 0:00:26]} Bd5 {[%emt 0:01:30]} 23. Rf4 {[%emt 0:00:36]} Bxg2 {[%emt 0:18:30]} 24. Kxg2 {[%emt 0:00:28]} Rxe2 {[%emt 0:00:00]} 25. Rd1 {[%emt 0:03:10]} Rxe5 {[%emt 0:06:58]} 26. Rd7 {[%emt 0:00:08]} f6 {[%emt 0:01:04]} 27. Rxb7 {[%emt 0:02:02]} axb4 {[%emt 0:00:23]} 28. Rfxb4 {[%emt 0:01:55]} Rea5 {[%emt 0:00:58]} 29. Rg4 {[%emt 0:01:30]} Rg5 {[%emt 0:03:51]} 30. Rc4 {[%emt 0:00:19]} Rga5 {[%emt 0:00:37]} 31. Rg4 {[%emt 0:01:51]} Rg5 {[%emt 0:00:09]} 32. Rc4 {[%emt 0:02:51]} Rga5 {[%emt 0:00:13]} 33. Rxc6 {[%emt 0:00:33]} Rxa4 {[%emt 0:00:04]} 34. Rcc7 {[%emt 0:00:13]} Rg4 {[%emt 0:06:56]} 35. h3 {[%emt 0:00:56]} Rg5 {[%emt 0:01:26]} 36. Rc4 {[%emt 0:00:30]} Rga5 {[%emt 0:00:30]} 37. Rg4 {[%emt 0:00:30]} Rg5 {[%emt 0:00:30]} 38. Rc4 {[%emt 0:00:30]} Rga5 {[%emt 0:00:30]} 39. Rc6 {[%emt 0:00:30]} Ra4 {[%emt 0:00:30]} 40. Rcc7 {[%emt 0:00:30]} Rg4 {[%emt 0:00:30]} 41. h4 {[%emt 0:00:30]} Rg6 {[%emt 0:00:30]} 42. Kh3 {[%emt 0:00:30]} h6 {[%emt 0:00:30]} 43. Rf7 {[%emt 0:00:30]} f5 {[%emt 0:00:30]} 44. Rfd7 {[%emt 0:00:30]} Rf8 {[%emt 0:00:30]} 45. Rb5 {[%emt 0:00:30]} h5 {[%emt 0:00:30]} 46. Kg2 {[%emt 0:00:30]} Rgf6 {[%emt 0:00:30]} 47. Rf7 {[%emt 0:00:30]} R8xf7 {[%emt 0:00:30]} 48. Kf3 {[%emt 0:00:30]} Kh7 {[%emt 0:00:30]} 49. Kf4 {[%emt 0:00:30]} Kg6 {[%emt 0:00:30]} 50. Rd5 {[%emt 0:00:30]} Ra6 {[%emt 0:00:30]} 51. f3 {[%emt 0:00:00]} 1/2-1/2

[Event "17th Spilimbergo Open 2019"]
[Site "Spilimbergo"]
[Date "2019.08.11"]
[Round "4.9"]
[White "Rahul Srivatshav P"]
[Black "Castellanos Rodriguez, Renier"]
[Result "1-0"]
[WhiteElo "2410"]
[BlackElo "2493"]
[PlyCount "75"]
[EventDate "2019.08.09"]
[EventType "swiss"]
[EventCountry "ITA"]
[TimeControl "5400+30"]
[WhiteClock "0:07:46"]
[BlackClock "0:26:00"]

1. Nf3 {[%emt 0:00:30]} Nf6 {[%emt 0:02:30]} 2. c4 {[%emt 0:00:00]} e6 {[%emt 0:01:30]} 3. g3 {[%emt 0:00:00]} b6 {[%emt 0:03:30]} 4. Bg2 {[%emt 0:00:30]} Bb7 {[%emt 0:00:30]} 5. O-O {[%emt 0:01:30]} c5 {[%emt 0:01:30]} 6. b3 {[%emt 0:00:00]} Be7 {[%emt 0:00:30]} 7. Nc3 {[%emt 0:00:00]} O-O {[%emt 0:04:30]} 8. d4 {[%emt 0:01:30]} cxd4 {[%emt 0:00:30]} 9. Qxd4 {[%emt 0:00:30]} Na6 {[%emt 0:06:30]} 10. Bb2 {[%emt 0:07:30]} Nc5 {[%emt 0:01:30]} 11. Rad1 {[%emt 0:00:30]} d6 {[%emt 0:03:30]} 12. Nb5 {[%emt 0:11:30]} Qb8 {[%emt 0:04:30]} 13. b4 {[%emt 0:14:30]} Nce4 {[%emt 0:02:30]} 14. Nd2 {[%emt 0:01:30]} Nxd2 {[%emt 0:00:30]} 15. Qxd2 {[%emt 0:01:30]} Bxg2 {[%emt 0:03:30]} 16. Kxg2 {[%emt 0:00:30]} Qb7+ {[%emt 0:01:30]} 17. f3 {[%emt 0:00:30]} Rad8 {[%emt 0:07:30]} 18. Bxf6 {[%emt 0:01:30]} Bxf6 {[%emt 0:03:30]} 19. Nxd6 {[%emt 0:04:30]} Qc6 {[%emt 0:00:30]} 20. Qf4 {[%emt 0:00:00]} Qa4 {[%emt 0:14:30]} 21. c5 {[%emt 0:01:00]} bxc5 {[%emt 0:00:30]} 22. bxc5 {[%emt 0:00:30]} Qxa2 {[%emt 0:00:30]} 23. Qe4 {[%emt 0:07:30]} Qa3 {[%emt 0:07:30]} 24. Rd3 {[%emt 0:01:30]} Qb2 {[%emt 0:02:30]} 25. c6 {[%emt 0:03:30]} Be7 {[%emt 0:02:30]} 26. Nb7 {[%emt 0:05:30]} Rc8 {[%emt 0:03:30]} 27. Rd7 {[%emt 0:01:30]} Rfe8 {[%emt 0:00:30]} 28. Rfd1 {[%emt 0:01:30]} Qb6 {[%emt 0:03:07]} 29. Qf4 {[%emt 0:07:30]} Qxc6 {[%emt 0:03:22]} 30. Nd6 {[%emt 0:00:00]} Qxd7 {[%emt 0:02:03]} 31. Qxf7+ {[%emt 0:00:00]} Kh8 {[%emt 0:00:03]} 32. Nf5 {[%emt 0:00:00]} exf5 {[%emt 0:00:17]} 33. Rxd7 {[%emt 0:00:00]} Bf6 {[%emt 0:00:00]} 34. Qa2 {[%emt 0:01:30]} a5 {[%emt 0:03:02]} 35. Rd5 {[%emt 0:01:30]} a4 {[%emt 0:00:11]} 36. Ra5 {[%emt 0:00:30]} h6 {[%emt 0:06:05]} 37. Rxa4 {[%emt 0:00:30]} Rb8 {[%emt 0:00:04]} 38. Qc4 1-0

[Event "17th Spilimbergo Open 2019"]
[Site "Spilimbergo"]
[Date "2019.08.11"]
[Round "4.10"]
[White "Henderson de La Fuente, Lance"]
[Black "Gschnitzer, Adrian"]
[Result "1-0"]
[WhiteElo "2487"]
[BlackElo "2410"]
[PlyCount "57"]
[EventDate "2019.08.09"]
[EventType "swiss"]
[EventCountry "ITA"]
[TimeControl "5400+30"]
[WhiteClock "0:29:00"]
[BlackClock "0:56:00"]

1. e4 {[%emt 0:00:30]} c5 {[%emt 0:00:30]} 2. Nf3 {[%emt 0:00:00]} Nc6 {[%emt 0:00:00]} 3. d4 {[%emt 0:00:00]} cxd4 {[%emt 0:00:00]} 4. Nxd4 {[%emt 0:00:30]} Nf6 {[%emt 0:00:00]} 5. Nc3 {[%emt 0:00:00]} e5 {[%emt 0:00:00]} 6. Ndb5 {[%emt 0:00:00]} d6 {[%emt 0:00:30]} 7. Nd5 {[%emt 0:04:30]} Nxd5 {[%emt 0:00:00]} 8. exd5 {[%emt 0:00:30]} Nb8 {[%emt 0:00:00]} 9. a4 {[%emt 0:01:30]} Be7 {[%emt 0:00:30]} 10. Be2 {[%emt 0:00:30]} O-O {[%emt 0:00:30]} 11. O-O {[%emt 0:00:30]} Nd7 {[%emt 0:00:30]} 12. Bd2 {[%emt 0:00:30]} f5 {[%emt 0:01:30]} 13. a5 {[%emt 0:01:30]} a6 {[%emt 0:00:00]} 14. Na3 {[%emt 0:00:30]} e4 {[%emt 0:00:00]} 15. Nc4 {[%emt 0:04:30]} Ne5 {[%emt 0:00:30]} 16. Nb6 {[%emt 0:01:30]} Rb8 {[%emt 0:00:30]} 17. f4 {[%emt 0:03:30]} exf3 {[%emt 0:00:00]} 18. Bxf3 {[%emt 0:00:30]} Bf6 {[%emt 0:00:00]} 19. c4 {[%emt 0:04:30]} Nxf3+ {[%emt 0:08:30]} 20. Qxf3 {[%emt 0:00:00]} Bxb2 {[%emt 0:00:30]} 21. Rae1 {[%emt 0:00:00]} g5 {[%emt 0:14:30]} 22. Qg3 {[%emt 0:01:30]} h6 {[%emt 0:07:30]} 23. h4 {[%emt 0:11:30]} Bd4+ {[%emt 0:06:30]} 24. Kh1 {[%emt 0:00:30]} Bf6 {[%emt 0:17:30]} 25. Bb4 {[%emt 0:06:30]} Be5 {[%emt 0:08:30]} 26. Rxe5 {[%emt 0:00:30]} f4 {[%emt 0:00:30]} 27. Qe1 {[%emt 0:00:30]} dxe5 {[%emt 0:00:30]} 28. Qxe5 {[%emt 0:01:30]} f3 {[%emt 0:05:30]} 29. Bc3 1-0

[Event "17th Spilimbergo Open 2019"]
[Site "Spilimbergo"]
[Date "2019.08.11"]
[Round "4.11"]
[White "Admiraal, Miguoel"]
[Black "Percivaldi, Martin"]
[Result "1-0"]
[WhiteElo "2513"]
[BlackElo "2391"]
[PlyCount "119"]
[EventDate "2019.08.09"]
[EventType "swiss"]
[EventCountry "ITA"]
[TimeControl "5400+30"]
[BlackClock "0:02:06"]

1. c4 {[%emt 0:00:30]} e6 {[%emt 0:00:30]} 2. Nc3 {[%emt 0:00:00]} d5 {[%emt 0:00:30]} 3. d4 {[%emt 0:00:00]} c6 {[%emt 0:00:30]} 4. cxd5 {[%emt 0:02:30]} exd5 {[%emt 0:01:30]} 5. Bf4 {[%emt 0:00:30]} Bf5 {[%emt 0:02:30]} 6. e3 {[%emt 0:02:30]} Bd6 {[%emt 0:05:30]} 7. Nge2 {[%emt 0:00:30]} Nf6 {[%emt 0:03:30]} 8. Ng3 {[%emt 0:07:30]} Bg6 {[%emt 0:00:30]} 9. h4 {[%emt 0:02:30]} Bxf4 {[%emt 0:14:30]} 10. exf4 {[%emt 0:00:30]} Qe7+ {[%emt 0:00:30]} 11. Qe2 {[%emt 0:19:30]} Nh5 {[%emt 0:07:30]} 12. Qxe7+ {[%emt 0:00:30]} Kxe7 {[%emt 0:00:30]} 13. Nce2 {[%emt 0:00:30]} Nxg3 {[%emt 0:09:30]} 14. Nxg3 {[%emt 0:00:30]} h6 {[%emt 0:01:30]} 15. f5 {[%emt 0:08:30]} Bh7 {[%emt 0:00:00]} 16. Bd3 {[%emt 0:00:00]} Nd7 {[%emt 0:03:00]} 17. Kd2 {[%emt 0:00:00]} Nf6 {[%emt 0:02:30]} 18. f3 {[%emt 0:03:30]} Kd6 {[%emt 0:04:30]} 19. Ne2 {[%emt 0:00:30]} b6 {[%emt 0:00:00]} 20. g4 {[%emt 0:00:00]} c5 {[%emt 0:01:00]} 21. Rae1 {[%emt 0:25:00]} Rhe8 {[%emt 0:06:30]} 22. Bb5 {[%emt 0:05:30]} Re7 {[%emt 0:06:30]} 23. Nf4 {[%emt 0:00:30]} Rxe1 {[%emt 0:00:00]} 24. Rxe1 {[%emt 0:00:30]} g5 {[%emt 0:00:00]} 25. hxg5 {[%emt 0:05:30]} hxg5 {[%emt 0:01:30]} 26. Nd3 {[%emt 0:00:33]} a6 {[%emt 0:03:30]} 27. Ba4 {[%emt 0:00:14]} Bg8 {[%emt 0:01:30]} 28. Rh1 {[%emt 0:04:01]} Nh7 {[%emt 0:08:43]} 29. Rh6+ {[%emt 0:06:20]} f6 {[%emt 0:00:05]} 30. Rg6 {[%emt 0:00:21]} c4 {[%emt 0:00:56]} 31. Nc1 {[%emt 0:02:34]} b5 {[%emt 0:01:32]} 32. Bc2 {[%emt 0:00:05]} Ke7 {[%emt 0:00:03]} 33. Rg7+ {[%emt 0:00:50]} Kf8 {[%emt 0:00:01]} 34. Rb7 {[%emt 0:00:08]} Ke8 {[%emt 0:00:48]} 35. Rg7 {[%emt 0:00:14]} Kf8 {[%emt 0:00:06]} 36. Rb7 {[%emt 0:00:01]} Ke8 {[%emt 0:00:06]} 37. a4 {[%emt 0:00:55]} Nf8 {[%emt 0:00:32]} 38. Ne2 {[%emt 0:00:36]} Nd7 {[%emt 0:02:54]} 39. Nc3 {[%emt 0:01:36]} Rb8 {[%emt 0:11:50]} 40. Rxb8+ {[%emt 0:00:08]} Nxb8 {[%emt 0:00:01]} 41. axb5 {[%emt 0:00:05]} Kd7 {[%emt 0:01:37]} 42. bxa6 {[%emt 0:00:40]} Nxa6 {[%emt 0:00:01]} 43. Ne2 {[%emt 0:00:21]} Nb4 {[%emt 0:00:18]} 44. Bb1 {[%emt 0:00:30]} Bf7 {[%emt 0:00:21]} 45. Kc3 {[%emt 0:00:07]} Na6 {[%emt 0:01:00]} 46. Bc2 {[%emt 0:00:08]} Kc7 {[%emt 0:00:55]} 47. Ba4 {[%emt 0:00:07]} Kd6 {[%emt 0:00:03]} 48. Bb5 {[%emt 0:00:38]} Nc7 {[%emt 0:00:34]} 49. Kb4 {[%emt 0:00:59]} Na8 {[%emt 0:01:06]} 50. Nc3 {[%emt 0:00:47]} Nb6 {[%emt 0:00:50]} 51. Ba4 {[%emt 0:01:11]} Bg8 {[%emt 0:00:57]} 52. Be8 {[%emt 0:00:33]} Nc8 {[%emt 0:00:28]} 53. Nb5+ {[%emt 0:01:08]} Ke7 {[%emt 0:00:06]} 54. Bc6 {[%emt 0:00:05]} Nb6 {[%emt 0:00:00]} 55. Nc3 {[%emt 0:01:15]} Kd6 {[%emt 0:00:09]} 56. Kb5 {[%emt 0:00:22]} Nc8 {[%emt 0:00:03]} 57. Bb7 {[%emt 0:00:03]} Ne7 {[%emt 0:00:16]} 58. Kb6 {[%emt 0:00:05]} Bf7 {[%emt 0:00:21]} 59. Nb5+ {[%emt 0:00:31]} Kd7 {[%emt 0:00:05]} 60. Kc5 {[%emt 0:00:06]} 1-0

[Event "17th Spilimbergo Open 2019"]
[Site "Spilimbergo"]
[Date "2019.08.11"]
[Round "4.12"]
[White "Veinberg, Nimrod"]
[Black "Palac, Mladen"]
[Result "1/2-1/2"]
[WhiteElo "2394"]
[BlackElo "2551"]
[PlyCount "63"]
[EventDate "2019.08.09"]
[EventType "swiss"]
[EventCountry "ITA"]
[TimeControl "5400+30"]

1. d4 {[%emt 0:00:30]} d5 {[%emt 0:00:30]} 2. Bf4 {[%emt 0:00:30]} c5 {[%emt 0:00:30]} 3. e3 {[%emt 0:00:30]} Nf6 {[%emt 0:00:30]} 4. Nf3 {[%emt 0:00:00]} e6 {[%emt 0:00:00]} 5. Nbd2 {[%emt 0:02:00]} a6 {[%emt 0:01:00]} 6. c3 {[%emt 0:00:30]} Nbd7 {[%emt 0:00:30]} 7. Bd3 {[%emt 0:00:30]} b5 {[%emt 0:00:00]} 8. a4 {[%emt 0:11:30]} c4 {[%emt 0:10:00]} 9. Bc2 {[%emt 0:00:30]} b4 {[%emt 0:11:30]} 10. e4 {[%emt 0:02:30]} dxe4 {[%emt 0:18:30]} 11. Nxe4 {[%emt 0:02:30]} Nd5 {[%emt 0:00:00]} 12. Bg5 {[%emt 0:06:30]} Qc7 {[%emt 0:10:00]} 13. a5 {[%emt 0:02:30]} f5 {[%emt 0:00:30]} 14. Ng3 {[%emt 0:00:30]} bxc3 {[%emt 0:01:30]} 15. bxc3 {[%emt 0:05:30]} Nxc3 {[%emt 0:01:30]} 16. Qc1 {[%emt 0:00:30]} Nd5 {[%emt 0:03:30]} 17. O-O {[%emt 0:00:30]} Bb4 {[%emt 0:01:30]} 18. Bd2 {[%emt 0:17:30]} c3 {[%emt 0:01:30]} 19. Qe1 {[%emt 0:04:30]} cxd2 {[%emt 0:03:30]} 20. Qxe6+ {[%emt 0:00:30]} Ne7 {[%emt 0:00:00]} 21. Ng5 {[%emt 0:01:30]} Rf8 {[%emt 0:05:00]} 22. Nh5 {[%emt 0:02:30]} Qxc2 {[%emt 0:04:30]} 23. Nxg7+ {[%emt 0:04:30]} Kd8 {[%emt 0:00:00]} 24. Qd6 {[%emt 0:04:30]} Rf6 {[%emt 0:06:00]} 25. N5e6+ {[%emt 0:05:30]} Rxe6 {[%emt 0:00:30]} 26. Nxe6+ {[%emt 0:00:30]} Ke8 {[%emt 0:00:00]} 27. Qxb4 {[%emt 0:04:35]} Rb8 {[%emt 0:03:48]} 28. Qd6 {[%emt 0:00:25]} Rb2 {[%emt 0:10:31]} 29. Nc7+ {[%emt 0:00:48]} Kd8 {[%emt 0:00:02]} 30. Ne6+ {[%emt 0:05:42]} Ke8 {[%emt 0:00:01]} 31. Nc7+ {[%emt 0:03:35]} Kd8 {[%emt 0:00:01]} 32. Ne6+ {[%emt 0:01:39]} 1/2-1/2

[Event "17th Spilimbergo Open 2019"]
[Site "Spilimbergo"]
[Date "2019.08.12"]
[Round "5.1"]
[White "Kovalev, Vladislav"]
[Black "Bosiocic, Marin"]
[Result "1-0"]
[WhiteElo "2651"]
[BlackElo "2611"]
[PlyCount "77"]
[EventDate "2019.08.09"]
[EventType "swiss"]
[EventCountry "ITA"]
[TimeControl "5400+30"]
[WhiteClock "0:24:00"]
[BlackClock "0:07:47"]

1. e4 {[%emt 0:00:30]} c5 {[%emt 0:00:30]} 2. Nf3 {[%emt 0:00:00]} d6 {[%emt 0:00:00]} 3. Bb5+ {[%emt 0:03:00]} Nd7 {[%emt 0:00:00]} 4. O-O {[%emt 0:00:30]} a6 {[%emt 0:00:30]} 5. Bd3 {[%emt 0:00:30]} Ngf6 {[%emt 0:00:00]} 6. Re1 {[%emt 0:00:00]} e6 {[%emt 0:00:00]} 7. a4 {[%emt 0:05:00]} b6 {[%emt 0:00:30]} 8. c3 {[%emt 0:03:30]} Be7 {[%emt 0:01:30]} 9. Bc2 {[%emt 0:00:30]} O-O {[%emt 0:00:30]} 10. d4 {[%emt 0:00:30]} Bb7 {[%emt 0:00:30]} 11. Nbd2 {[%emt 0:15:30]} cxd4 {[%emt 0:02:30]} 12. cxd4 {[%emt 0:06:30]} Rc8 {[%emt 0:00:30]} 13. Bd3 {[%emt 0:01:30]} e5 {[%emt 0:03:30]} 14. d5 {[%emt 0:03:30]} Nh5 {[%emt 0:08:30]} 15. Nc4 {[%emt 0:10:30]} Nc5 {[%emt 0:25:30]} 16. Bf1 {[%emt 0:03:30]} Nf6 {[%emt 0:01:30]} 17. Nfd2 {[%emt 0:04:30]} a5 {[%emt 0:00:30]} 18. b3 {[%emt 0:04:30]} g6 {[%emt 0:03:30]} 19. Ba3 {[%emt 0:04:30]} Ba6 {[%emt 0:03:30]} 20. Nxd6 {[%emt 0:11:30]} Bxd6 {[%emt 0:03:30]} 21. Bxc5 {[%emt 0:00:30]} Bxc5 {[%emt 0:00:30]} 22. Bxa6 {[%emt 0:00:00]} Rc7 {[%emt 0:00:30]} 23. Nc4 {[%emt 0:01:10]} Bd4 {[%emt 0:00:30]} 24. Ra2 {[%emt 0:01:48]} Ne8 {[%emt 0:00:30]} 25. Rd2 {[%emt 0:04:06]} Bc3 {[%emt 0:01:30]} 26. d6 {[%emt 0:00:23]} Rxc4 {[%emt 0:00:30]} 27. Bxc4 {[%emt 0:00:26]} Bxd2 {[%emt 0:00:30]} 28. Qxd2 {[%emt 0:00:04]} Qxd6 {[%emt 0:04:30]} 29. Rd1 {[%emt 0:02:09]} Qf6 {[%emt 0:01:30]} 30. f3 {[%emt 0:04:38]} h5 {[%emt 0:03:30]} 31. Qd8 {[%emt 0:02:27]} Qc6 {[%emt 0:04:30]} 32. Qe7 {[%emt 0:00:53]} Qf6 {[%emt 0:05:30]} 33. Qxf6 {[%emt 0:01:15]} Nxf6 {[%emt 0:00:30]} 34. Rd6 {[%emt 0:00:05]} Kg7 {[%emt 0:00:00]} 35. Rxb6 {[%emt 0:00:13]} Rd8 {[%emt 0:00:00]} 36. h4 {[%emt 0:00:30]} Rd1+ {[%emt 0:00:30]} 37. Kh2 {[%emt 0:00:27]} g5 {[%emt 0:03:30]} 38. hxg5 {[%emt 0:00:09]} Nh7 {[%emt 0:00:00]} 39. Bxf7 1-0

[Event "17th Spilimbergo Open 2019"]
[Site "Spilimbergo"]
[Date "2019.08.12"]
[Round "5.2"]
[White "Saric, Ivan"]
[Black "Rahul Srivatshav P"]
[Result "1-0"]
[WhiteElo "2660"]
[BlackElo "2410"]
[PlyCount "71"]
[EventDate "2019.08.09"]
[EventType "swiss"]
[EventCountry "ITA"]
[TimeControl "5400+30"]
[WhiteClock "0:21:00"]
[BlackClock "0:30:00"]

1. d4 {[%emt 0:00:30]} Nf6 {[%emt 0:01:30]} 2. c4 {[%emt 0:00:00]} g6 {[%emt 0:00:30]} 3. Nc3 {[%emt 0:00:00]} Bg7 {[%emt 0:00:00]} 4. e4 {[%emt 0:00:30]} d6 {[%emt 0:00:00]} 5. Be2 {[%emt 0:00:30]} O-O {[%emt 0:00:00]} 6. Be3 {[%emt 0:00:30]} c5 {[%emt 0:00:00]} 7. d5 {[%emt 0:00:30]} e6 {[%emt 0:00:30]} 8. Nf3 {[%emt 0:00:00]} exd5 {[%emt 0:00:30]} 9. cxd5 {[%emt 0:00:00]} Bg4 {[%emt 0:00:00]} 10. Nd2 {[%emt 0:00:30]} Bxe2 {[%emt 0:00:00]} 11. Qxe2 {[%emt 0:00:30]} Na6 {[%emt 0:00:30]} 12. O-O {[%emt 0:05:30]} Re8 {[%emt 0:00:30]} 13. Rfe1 {[%emt 0:00:30]} Nc7 {[%emt 0:00:30]} 14. a4 {[%emt 0:01:30]} a6 {[%emt 0:06:30]} 15. a5 {[%emt 0:06:30]} Rb8 {[%emt 0:03:30]} 16. Kh1 {[%emt 0:03:30]} Nd7 {[%emt 0:08:30]} 17. Bf4 {[%emt 0:12:30]} Ne5 {[%emt 0:16:30]} 18. Bg3 {[%emt 0:00:30]} f5 {[%emt 0:00:30]} 19. exf5 {[%emt 0:01:30]} gxf5 {[%emt 0:00:30]} 20. Nc4 {[%emt 0:04:30]} Nxc4 {[%emt 0:10:30]} 21. Qxc4 {[%emt 0:00:30]} Qf6 {[%emt 0:01:30]} 22. Qf4 {[%emt 0:01:30]} Rxe1+ {[%emt 0:01:30]} 23. Rxe1 {[%emt 0:00:30]} Re8 {[%emt 0:00:00]} 24. Rxe8+ {[%emt 0:02:30]} Nxe8 {[%emt 0:00:00]} 25. h3 {[%emt 0:01:30]} Kf7 {[%emt 0:06:30]} 26. Qf3 {[%emt 0:06:30]} Nc7 {[%emt 0:07:30]} 27. Na4 {[%emt 0:05:30]} Nb5 {[%emt 0:07:30]} 28. Nb6 {[%emt 0:00:30]} Kg6 {[%emt 0:00:30]} 29. Nc4 {[%emt 0:00:30]} Bf8 {[%emt 0:01:30]} 30. Bf4 {[%emt 0:03:30]} Kf7 {[%emt 0:00:30]} 31. Kh2 {[%emt 0:02:30]} Ke7 {[%emt 0:01:30]} 32. Qe3+ {[%emt 0:06:30]} Kf7 {[%emt 0:00:30]} 33. Qd3 {[%emt 0:00:30]} Kg8 {[%emt 0:05:30]} 34. Qe2 {[%emt 0:03:30]} Qd4 {[%emt 0:01:30]} 35. Qe6+ {[%emt 0:01:30]} Kh8 {[%emt 0:00:00]} 36. Bg5 1-0

[Event "17th Spilimbergo Open 2019"]
[Site "Spilimbergo"]
[Date "2019.08.12"]
[Round "5.3"]
[White "Sonis, Francesco"]
[Black "Henderson de La Fuente, Lance"]
[Result "1/2-1/2"]
[WhiteElo "2459"]
[BlackElo "2487"]
[PlyCount "50"]
[EventDate "2019.08.09"]
[EventType "swiss"]
[EventCountry "ITA"]
[TimeControl "5400+30"]
[WhiteClock "1:13:00"]
[BlackClock "1:24:00"]

1. d4 {[%emt 0:00:30]} Nf6 {[%emt 0:00:30]} 2. c4 {[%emt 0:00:00]} e6 {[%emt 0:00:30]} 3. g3 {[%emt 0:00:00]} d5 {[%emt 0:00:00]} 4. Nf3 {[%emt 0:00:00]} Be7 {[%emt 0:00:00]} 5. Bg2 {[%emt 0:00:00]} O-O {[%emt 0:00:30]} 6. O-O {[%emt 0:00:30]} dxc4 {[%emt 0:00:00]} 7. Ne5 {[%emt 0:01:30]} Nc6 {[%emt 0:00:00]} 8. Bxc6 {[%emt 0:00:30]} bxc6 {[%emt 0:00:30]} 9. Nxc6 {[%emt 0:00:00]} Qe8 {[%emt 0:00:30]} 10. Nxe7+ {[%emt 0:00:00]} Qxe7 {[%emt 0:00:00]} 11. Qa4 {[%emt 0:00:00]} e5 {[%emt 0:00:00]} 12. dxe5 {[%emt 0:00:00]} Qxe5 {[%emt 0:00:30]} 13. Nc3 {[%emt 0:00:30]} Ne4 {[%emt 0:00:30]} 14. Qxc4 {[%emt 0:00:30]} Nxc3 {[%emt 0:00:00]} 15. Qxc3 {[%emt 0:00:30]} Qxe2 {[%emt 0:01:00]} 16. Re1 {[%emt 0:00:30]} Qh5 {[%emt 0:07:30]} 17. Bf4 {[%emt 0:00:30]} Bb7 {[%emt 0:01:30]} 18. Re5 {[%emt 0:00:00]} Qh3 {[%emt 0:02:30]} 19. f3 {[%emt 0:00:00]} Rae8 {[%emt 0:06:30]} 20. Rae1 {[%emt 0:05:30]} Qd7 {[%emt 0:05:30]} 21. Rxe8 {[%emt 0:06:30]} Rxe8 {[%emt 0:00:30]} 22. Rxe8+ {[%emt 0:00:00]} Qxe8 {[%emt 0:00:00]} 23. Qxc7 {[%emt 0:01:00]} Bxf3 {[%emt 0:00:00]} 24. Qb8 {[%emt 0:00:00]} Qxb8 {[%emt 0:00:30]} 25. Bxb8 {[%emt 0:00:00]} a6 1/2-1/2

[Event "17th Spilimbergo Open 2019"]
[Site "Spilimbergo"]
[Date "2019.08.12"]
[Round "5.4"]
[White "Ankit, R. Rajpara"]
[Black "Nisipeanu, Liviu-Dieter"]
[Result "0-1"]
[WhiteElo "2454"]
[BlackElo "2666"]
[PlyCount "80"]
[EventDate "2019.08.09"]
[EventType "swiss"]
[EventCountry "ITA"]
[TimeControl "5400+30"]
[WhiteClock "0:21:00"]
[BlackClock "0:00:33"]

1. d4 {[%emt 0:00:30]} Nf6 {[%emt 0:00:30]} 2. c4 {[%emt 0:00:00]} g6 {[%emt 0:00:00]} 3. Nc3 {[%emt 0:00:00]} Bg7 {[%emt 0:00:00]} 4. e4 {[%emt 0:03:30]} d6 {[%emt 0:00:00]} 5. Nf3 {[%emt 0:00:30]} O-O {[%emt 0:00:00]} 6. Be2 {[%emt 0:00:30]} Na6 {[%emt 0:00:30]} 7. O-O {[%emt 0:01:30]} e5 {[%emt 0:00:00]} 8. d5 {[%emt 0:23:30]} Nc5 {[%emt 0:08:00]} 9. Nd2 {[%emt 0:09:30]} a5 {[%emt 0:00:30]} 10. Rb1 {[%emt 0:06:30]} Nfd7 {[%emt 0:07:30]} 11. b3 {[%emt 0:05:30]} f5 {[%emt 0:00:30]} 12. a3 {[%emt 0:00:30]} Nf6 {[%emt 0:00:30]} 13. b4 {[%emt 0:05:30]} axb4 {[%emt 0:27:30]} 14. axb4 {[%emt 0:00:00]} Ncxe4 {[%emt 0:00:00]} 15. Ndxe4 {[%emt 0:00:00]} fxe4 {[%emt 0:00:00]} 16. c5 {[%emt 0:05:30]} h5 {[%emt 0:03:30]} 17. Be3 {[%emt 0:10:30]} Qe7 {[%emt 0:00:30]} 18. Qd2 {[%emt 0:05:57]} Bf5 {[%emt 0:00:30]} 19. Nb5 {[%emt 0:01:30]} Kh7 {[%emt 0:04:30]} 20. Rfc1 {[%emt 0:01:16]} Rfd8 {[%emt 0:00:00]} 21. cxd6 {[%emt 0:02:46]} cxd6 {[%emt 0:00:00]} 22. Na7 {[%emt 0:01:58]} Qf7 {[%emt 0:00:30]} 23. Rd1 {[%emt 0:00:46]} Rxa7 {[%emt 0:04:30]} 24. Bxa7 {[%emt 0:00:09]} e3 {[%emt 0:00:00]} 25. Qxe3 {[%emt 0:03:52]} Bxb1 {[%emt 0:00:00]} 26. Rxb1 {[%emt 0:00:05]} Nxd5 {[%emt 0:00:30]} 27. Qb3 {[%emt 0:06:18]} Qf5 {[%emt 0:02:30]} 28. Rd1 {[%emt 0:00:20]} Nf4 {[%emt 0:01:30]} 29. Bf1 {[%emt 0:00:11]} e4 {[%emt 0:10:30]} 30. g3 {[%emt 0:04:52]} Nh3+ {[%emt 0:00:30]} 31. Bxh3 {[%emt 0:00:08]} Qxh3 {[%emt 0:00:30]} 32. Qd5 {[%emt 0:01:02]} Qf5 {[%emt 0:01:30]} 33. Qxb7 {[%emt 0:01:12]} Rd7 {[%emt 0:00:30]} 34. Qa6 {[%emt 0:00:30]} d5 {[%emt 0:02:30]} 35. Bd4 {[%emt 0:00:29]} Qf3 {[%emt 0:00:30]} 36. Qf1 {[%emt 0:00:06]} Rf7 {[%emt 0:01:30]} 37. Be3 {[%emt 0:00:54]} d4 {[%emt 0:00:30]} 38. Bf4 {[%emt 0:00:23]} Be5 {[%emt 0:06:30]} 39. Bxe5 {[%emt 0:00:22]} e3 {[%emt 0:00:00]} 40. Bxd4 {[%emt 0:00:51]} e2 0-1